[Event "Titled Tuesday Blitz April 12 Late 2022"]
[White "Lewicki, Miroslaw"]
[Black "Afanasiev, Nikita"]
[WhiteFideId "1113380"]
[BlackFideId "24183555"]
[WhiteElo "2531"]
[BlackElo "2828"]
[Result "1-0"]
[Round "03"]
[TimeControl "180+1"]
[Date "2022.04.13"]
[WhiteClock "0:00:07"]
[BlackClock "0:00:35"]

1. b3 {[%clk 0:02:58]}  b6 {[%clk 0:02:56]} 2. Bb2 {[%clk 0:02:57]}  Bb7 {[%clk 0:02:57]} 3. Nf3 {[%clk 0:02:56]}  Nf6 {[%clk 0:02:57]} 4. g3 {[%clk 0:02:53]}  c5 {[%clk 0:02:54]} 5. Bg2 {[%clk 0:02:53]}  e6 {[%clk 0:02:54]} 6. O-O {[%clk 0:02:52]}  Be7 {[%clk 0:02:54]} 7. c4 {[%clk 0:02:52]}  O-O {[%clk 0:02:54]} 8. Nc3 {[%clk 0:02:50]}  Ne4 {[%clk 0:02:52]} 9. Nxe4 {[%clk 0:02:49]}  Bxe4 {[%clk 0:02:51]} 10. d4 {[%clk 0:02:50]}  Nc6 {[%clk 0:02:49]} 11. d5 {[%clk 0:02:46]}  exd5 {[%clk 0:02:45]} 12. cxd5 {[%clk 0:02:47]}  Nb4 {[%clk 0:02:45]} 13. Ne5 {[%clk 0:02:46]}  Bxg2 {[%clk 0:02:42]} 14. Kxg2 {[%clk 0:02:47]}  d6 {[%clk 0:02:42]} 15. Nf3 {[%clk 0:02:40]}  Bf6 {[%clk 0:02:40]} 16. Bxf6 {[%clk 0:02:36]}  Qxf6 {[%clk 0:02:40]} 17. a3 {[%clk 0:02:32]}  Na6 {[%clk 0:02:40]} 18. Qd3 {[%clk 0:02:32]}  Nc7 {[%clk 0:02:40]} 19. e4 {[%clk 0:02:32]}  Rfe8 {[%clk 0:02:38]} 20. Rfe1 {[%clk 0:02:32]}  Rad8 {[%clk 0:02:36]} 21. Rad1 {[%clk 0:02:30]}  Rd7 {[%clk 0:02:30]} 22. b4 {[%clk 0:02:27]}  h6 {[%clk 0:02:25]} 23. bxc5 {[%clk 0:02:27]}  bxc5 {[%clk 0:02:23]} 24. Rb1 {[%clk 0:02:26]}  Qg6 {[%clk 0:02:04]} 25. Rb7 {[%clk 0:02:24]}  Ne6 {[%clk 0:02:04]} 26. Qb5 {[%clk 0:02:17]}  Rxb7 {[%clk 0:01:58]} 27. Qxe8+ {[%clk 0:02:14]}  Nf8 {[%clk 0:01:58]} 28. Nh4 {[%clk 0:02:08]}  Qf6 {[%clk 0:01:53]} 29. Nf5 {[%clk 0:01:57]}  h5 {[%clk 0:01:44]} 30. Qc8 {[%clk 0:01:20]}  Rb2 {[%clk 0:01:37]} 31. Qc7 {[%clk 0:00:50]}  Qc3 {[%clk 0:01:31]} 32. Re3 {[%clk 0:00:45]}  Qc2 {[%clk 0:01:19]} 33. Rf3 {[%clk 0:00:45]}  Qxe4 {[%clk 0:01:19]} 34. Nh6+ {[%clk 0:00:29]}  Kh7 {[%clk 0:01:17]} 35. Nxf7 {[%clk 0:00:22]}  Qxd5 {[%clk 0:01:07]} 36. Qe7 {[%clk 0:00:20]}  Rb3 {[%clk 0:01:01]} 37. Ng5+ {[%clk 0:00:20]}  Kg6 {[%clk 0:01:00]} 38. Qxf8 {[%clk 0:00:17]}  c4 {[%clk 0:01:00]} 39. h4 {[%clk 0:00:15]}  Rxf3 {[%clk 0:00:51]} 40. Qxf3 {[%clk 0:00:14]}  Qxf3+ {[%clk 0:00:42]} 41. Kxf3 {[%clk 0:00:14]}  Kf5 {[%clk 0:00:43]} 42. Ke3 {[%clk 0:00:14]}  Ke5 {[%clk 0:00:43]} 43. f4+ {[%clk 0:00:10]}  Kd5 {[%clk 0:00:42]} 44. Ne4 {[%clk 0:00:11]}  a6 {[%clk 0:00:40]} 45. Nc3+ {[%clk 0:00:11]}  Kc5 {[%clk 0:00:35]} 46. Ke4 {[%clk 0:00:11]}  g6 {[%clk 0:00:35]} 47. Nd5 {[%clk 0:00:04]}  Kb5 {[%clk 0:00:28]} 48. Kd4 {[%clk 0:00:04]}  Ka4 {[%clk 0:00:28]} 49. Kxc4 {[%clk 0:00:03]}  Kxa3 {[%clk 0:00:29]} 50. Ne7 {[%clk 0:00:04]}  a5 {[%clk 0:00:29]} 51. Nxg6 {[%clk 0:00:04]}  a4 {[%clk 0:00:30]} 52. f5 {[%clk 0:00:05]}  Kb2 {[%clk 0:00:30]} 53. f6 {[%clk 0:00:05]}  a3 {[%clk 0:00:31]} 54. f7 {[%clk 0:00:06]}  a2 {[%clk 0:00:32]} 55. f8=Q {[%clk 0:00:06]}  d5+ {[%clk 0:00:32]} 56. Kxd5 {[%clk 0:00:06]}  a1=Q {[%clk 0:00:33]} 57. Qf6+ {[%clk 0:00:06]}  Kb1 {[%clk 0:00:34]} 58. Qxa1+ {[%clk 0:00:06]}  Kxa1 {[%clk 0:00:35]} 59. Nf4 {[%clk 0:00:07]} 1-0


[Site "https://www.chess.com"]

[Event "Titled Tuesday Blitz April 12 Late 2022"]
[White "Manolache, Marius"]
[Black "Papp, Petra"]
[WhiteFideId "1201530"]
[BlackFideId "739049"]
[WhiteElo "2629"]
[BlackElo "2444"]
[Result "1-0"]
[Round "03"]
[TimeControl "180+1"]
[Date "2022.04.13"]
[WhiteClock "0:01:26"]
[BlackClock "0:00:13"]

1. d4 {[%clk 0:03:00]}  Nf6 {[%clk 0:02:50]} 2. c4 {[%clk 0:03:00]}  c5 {[%clk 0:02:50]} 3. d5 {[%clk 0:03:00]}  b5 {[%clk 0:02:50]} 4. Qc2 {[%clk 0:03:00]}  d6 {[%clk 0:02:46]} 5. e4 {[%clk 0:03:00]}  g6 {[%clk 0:02:44]} 6. cxb5 {[%clk 0:02:59]}  Bg7 {[%clk 0:02:41]} 7. Nc3 {[%clk 0:02:59]}  O-O {[%clk 0:02:41]} 8. Nf3 {[%clk 0:02:58]}  a6 {[%clk 0:02:40]} 9. a4 {[%clk 0:02:58]}  Nbd7 {[%clk 0:02:34]} 10. h3 {[%clk 0:02:56]}  axb5 {[%clk 0:02:30]} 11. Bxb5 {[%clk 0:02:55]}  Ba6 {[%clk 0:02:30]} 12. O-O {[%clk 0:02:55]}  Bxb5 {[%clk 0:02:30]} 13. Nxb5 {[%clk 0:02:55]}  Qb6 {[%clk 0:02:27]} 14. Be3 {[%clk 0:02:50]}  Ne8 {[%clk 0:02:23]} 15. Nd2 {[%clk 0:02:48]}  Nc7 {[%clk 0:02:21]} 16. Nc4 {[%clk 0:02:45]}  Qb7 {[%clk 0:02:20]} 17. Nxc7 {[%clk 0:02:42]}  Qxc7 {[%clk 0:02:20]} 18. a5 {[%clk 0:02:41]}  Ra6 {[%clk 0:02:18]} 19. Ra3 {[%clk 0:02:32]}  Rfa8 {[%clk 0:02:14]} 20. Bd2 {[%clk 0:02:31]}  h6 {[%clk 0:02:00]} 21. f4 {[%clk 0:02:26]}  Qb7 {[%clk 0:01:57]} 22. b3 {[%clk 0:02:17]}  Kh7 {[%clk 0:01:32]} 23. f5 {[%clk 0:02:14]}  g5 {[%clk 0:01:24]} 24. f6 {[%clk 0:02:04]}  exf6 {[%clk 0:01:18]} 25. Nxd6 {[%clk 0:01:59]}  Rxd6 {[%clk 0:01:03]} 26. e5+ {[%clk 0:01:59]}  Kg8 {[%clk 0:01:04]} 27. exd6 {[%clk 0:01:59]}  Qxd5 {[%clk 0:01:04]} 28. Bc3 {[%clk 0:01:53]}  Qxd6 {[%clk 0:01:02]} 29. Qe4 {[%clk 0:01:45]}  Ra6 {[%clk 0:00:54]} 30. Qc4 {[%clk 0:01:42]}  Qe6 {[%clk 0:00:32]} 31. Qxe6 {[%clk 0:01:34]}  fxe6 {[%clk 0:00:32]} 32. Rd1 {[%clk 0:01:34]}  Nf8 {[%clk 0:00:25]} 33. Rd8 {[%clk 0:01:30]}  f5 {[%clk 0:00:20]} 34. Bxg7 {[%clk 0:01:27]}  Kxg7 {[%clk 0:00:21]} 35. Rb8 {[%clk 0:01:26]}  Kf6 {[%clk 0:00:18]} 36. Rb6 {[%clk 0:01:26]}  Ra7 {[%clk 0:00:18]} 37. a6 {[%clk 0:01:26]}  Ke5 {[%clk 0:00:13]} 38. Rb7 {[%clk 0:01:25]}  Ra8 {[%clk 0:00:13]} 39. a7 {[%clk 0:01:26]} 1-0


[Site "https://www.chess.com"]

[Event "Titled Tuesday Blitz April 12 Late 2022"]
[White "Martic, Ivan"]
[Black "Rustemov, Alexander"]
[WhiteFideId "929301"]
[BlackFideId "4119002"]
[WhiteElo "2515"]
[BlackElo "2791"]
[Result "0-1"]
[Round "03"]
[TimeControl "180+1"]
[Date "2022.04.13"]
[WhiteClock "0:00:49"]
[BlackClock "0:01:12"]

1. e4 {[%clk 0:03:00]}  e6 {[%clk 0:02:56]} 2. d4 {[%clk 0:03:00]}  d5 {[%clk 0:02:57]} 3. e5 {[%clk 0:02:59]}  Bd7 {[%clk 0:02:56]} 4. Nf3 {[%clk 0:02:58]}  a6 {[%clk 0:02:57]} 5. c4 {[%clk 0:02:58]}  Ne7 {[%clk 0:02:56]} 6. Nc3 {[%clk 0:02:57]}  Bc6 {[%clk 0:02:56]} 7. Be2 {[%clk 0:02:54]}  dxc4 {[%clk 0:02:55]} 8. Bxc4 {[%clk 0:02:55]}  Nd7 {[%clk 0:02:55]} 9. O-O {[%clk 0:02:54]}  Nb6 {[%clk 0:02:55]} 10. Bb3 {[%clk 0:02:50]}  Nf5 {[%clk 0:02:52]} 11. Be3 {[%clk 0:02:45]}  Be7 {[%clk 0:02:52]} 12. Rc1 {[%clk 0:02:43]}  O-O {[%clk 0:02:51]} 13. Re1 {[%clk 0:02:35]}  Qd7 {[%clk 0:02:51]} 14. Bc2 {[%clk 0:02:33]}  Rad8 {[%clk 0:02:37]} 15. Bxf5 {[%clk 0:02:31]}  exf5 {[%clk 0:02:37]} 16. Qe2 {[%clk 0:02:22]}  h6 {[%clk 0:02:31]} 17. h4 {[%clk 0:02:18]}  Rfe8 {[%clk 0:02:30]} 18. h5 {[%clk 0:02:15]}  Nd5 {[%clk 0:02:19]} 19. Nxd5 {[%clk 0:02:10]}  Bxd5 {[%clk 0:02:19]} 20. a3 {[%clk 0:02:07]}  c6 {[%clk 0:02:18]} 21. Rcd1 {[%clk 0:02:02]}  f4 {[%clk 0:02:18]} 22. Bxf4 {[%clk 0:02:00]}  Qg4 {[%clk 0:02:18]} 23. Bg3 {[%clk 0:02:00]}  Qxh5 {[%clk 0:02:18]} 24. Nd2 {[%clk 0:01:49]}  Qxe2 {[%clk 0:02:15]} 25. Rxe2 {[%clk 0:01:50]}  Rd7 {[%clk 0:02:05]} 26. Nb1 {[%clk 0:01:49]}  Red8 {[%clk 0:02:03]} 27. Re3 {[%clk 0:01:38]}  Bc4 {[%clk 0:01:56]} 28. Re4 {[%clk 0:01:27]}  c5 {[%clk 0:01:47]} 29. Rc1 {[%clk 0:01:24]}  Bd3 {[%clk 0:01:44]} 30. e6 {[%clk 0:01:13]}  Rxd4 {[%clk 0:01:34]} 31. exf7+ {[%clk 0:01:11]}  Kxf7 {[%clk 0:01:34]} 32. Rxd4 {[%clk 0:01:08]}  Rxd4 {[%clk 0:01:34]} 33. Nc3 {[%clk 0:01:08]}  b5 {[%clk 0:01:29]} 34. Re1 {[%clk 0:00:59]}  Rd7 {[%clk 0:01:27]} 35. Be5 {[%clk 0:00:58]}  c4 {[%clk 0:01:26]} 36. Re3 {[%clk 0:00:58]}  g5 {[%clk 0:01:22]} 37. g4 {[%clk 0:00:53]}  Kg6 {[%clk 0:01:21]} 38. f4 {[%clk 0:00:52]}  Bc5 {[%clk 0:01:18]} 39. f5+ {[%clk 0:00:52]}  Kf7 {[%clk 0:01:18]} 40. Kf2 {[%clk 0:00:52]}  h5 {[%clk 0:01:15]} 41. gxh5 {[%clk 0:00:49]}  Bxf5 {[%clk 0:01:15]} 42. Ke2 {[%clk 0:00:49]}  Bg4+ {[%clk 0:01:12]} 0-1


[Site "https://www.chess.com"]

[Event "Titled Tuesday Blitz April 12 Late 2022"]
[White "Mikhailov, Viacheslav"]
[Black "Bortnyk, Olexandr"]
[WhiteFideId "4187369"]
[BlackFideId "14120828"]
[WhiteElo "2381"]
[BlackElo "2723"]
[Result "0-1"]
[Round "03"]
[TimeControl "180+1"]
[Date "2022.04.12"]
[WhiteClock "0:00:12"]
[BlackClock "0:00:50"]

1. Nf3 {[%clk 0:02:59]}  Nf6 {[%clk 0:02:57]} 2. c4 {[%clk 0:02:58]}  d6 {[%clk 0:02:57]} 3. g3 {[%clk 0:02:58]}  g6 {[%clk 0:02:58]} 4. Bg2 {[%clk 0:02:58]}  Bg7 {[%clk 0:02:59]} 5. O-O {[%clk 0:02:58]}  O-O {[%clk 0:03:00]} 6. Nc3 {[%clk 0:02:59]}  Bf5 {[%clk 0:03:00]} 7. d3 {[%clk 0:03:00]}  e5 {[%clk 0:02:56]} 8. Bg5 {[%clk 0:02:56]}  Qc8 {[%clk 0:02:55]} 9. Bc1 {[%clk 0:02:46]}  Bh3 {[%clk 0:02:32]} 10. Bg5 {[%clk 0:02:44]}  Nc6 {[%clk 0:02:25]} 11. Rc1 {[%clk 0:02:42]}  Re8 {[%clk 0:02:23]} 12. Nd5 {[%clk 0:02:37]}  Bxg2 {[%clk 0:02:11]} 13. Kxg2 {[%clk 0:02:29]}  Nxd5 {[%clk 0:02:00]} 14. cxd5 {[%clk 0:02:30]}  Ne7 {[%clk 0:02:01]} 15. Bxe7 {[%clk 0:02:29]}  Rxe7 {[%clk 0:02:02]} 16. e4 {[%clk 0:02:26]}  c5 {[%clk 0:01:48]} 17. b4 {[%clk 0:02:19]}  b6 {[%clk 0:01:47]} 18. bxc5 {[%clk 0:02:19]}  bxc5 {[%clk 0:01:48]} 19. Nd2 {[%clk 0:02:19]}  Bh6 {[%clk 0:01:47]} 20. Rb1 {[%clk 0:02:18]}  Bxd2 {[%clk 0:01:46]} 21. Qxd2 {[%clk 0:02:19]}  Rb7 {[%clk 0:01:46]} 22. h4 {[%clk 0:02:04]}  h5 {[%clk 0:01:30]} 23. Rfc1 {[%clk 0:01:21]}  Rab8 {[%clk 0:01:28]} 24. Rxb7 {[%clk 0:01:20]}  Qxb7 {[%clk 0:01:27]} 25. Rc4 {[%clk 0:01:20]}  Qb1 {[%clk 0:01:10]} 26. Ra4 {[%clk 0:00:19]}  Rb2 {[%clk 0:00:52]} 27. Qg5 {[%clk 0:00:13]}  Qc2 {[%clk 0:00:50]} 28. Qe3 {[%clk 0:00:12]}  Qxa4 {[%clk 0:00:50]} 0-1


[Site "https://www.chess.com"]

[Event "Titled Tuesday Blitz April 12 Late 2022"]
[White "Moroni, Luca Jr"]
[Black "Dubov, Daniil"]
[WhiteFideId "865834"]
[BlackFideId "24126055"]
[WhiteElo "2573"]
[BlackElo "2791"]
[Result "0-1"]
[Round "03"]
[TimeControl "180+1"]
[Date "2022.04.12"]
[WhiteClock "0:00:03"]
[BlackClock "0:00:04"]

1. d4 {[%clk 0:03:00]}  Nf6 {[%clk 0:02:58]} 2. c4 {[%clk 0:02:59]}  c5 {[%clk 0:02:57]} 3. Nf3 {[%clk 0:02:59]}  cxd4 {[%clk 0:02:56]} 4. Nxd4 {[%clk 0:03:00]}  e5 {[%clk 0:02:55]} 5. Nb5 {[%clk 0:03:00]}  d5 {[%clk 0:02:55]} 6. cxd5 {[%clk 0:03:00]}  Bc5 {[%clk 0:02:55]} 7. e3 {[%clk 0:02:46]}  O-O {[%clk 0:02:54]} 8. N5c3 {[%clk 0:02:44]}  e4 {[%clk 0:02:52]} 9. Be2 {[%clk 0:02:44]}  Bf5 {[%clk 0:02:51]} 10. a3 {[%clk 0:02:44]}  Nbd7 {[%clk 0:02:49]} 11. b4 {[%clk 0:02:36]}  Bd6 {[%clk 0:02:49]} 12. Bb2 {[%clk 0:02:36]}  Ne5 {[%clk 0:02:43]} 13. Nb5 {[%clk 0:02:34]}  Bg4 {[%clk 0:02:40]} 14. O-O {[%clk 0:02:13]}  Re8 {[%clk 0:02:10]} 15. Nd2 {[%clk 0:02:01]}  h5 {[%clk 0:02:04]} 16. Nxd6 {[%clk 0:01:35]}  Qxd6 {[%clk 0:02:03]} 17. Bxe5 {[%clk 0:01:35]}  Qxe5 {[%clk 0:02:01]} 18. Nc4 {[%clk 0:01:35]}  Qg5 {[%clk 0:01:57]} 19. Bxg4 {[%clk 0:01:26]}  hxg4 {[%clk 0:01:48]} 20. d6 {[%clk 0:01:25]}  Rad8 {[%clk 0:01:47]} 21. Qd4 {[%clk 0:01:24]}  Re6 {[%clk 0:01:43]} 22. Rfd1 {[%clk 0:01:23]}  b5 {[%clk 0:01:42]} 23. Na5 {[%clk 0:01:22]}  Rexd6 {[%clk 0:01:36]} 24. Qxd6 {[%clk 0:01:23]}  Rxd6 {[%clk 0:01:37]} 25. Rxd6 {[%clk 0:01:24]}  g3 {[%clk 0:01:26]} 26. hxg3 {[%clk 0:01:19]}  Ng4 {[%clk 0:01:26]} 27. Rc1 {[%clk 0:01:08]}  Qh5 {[%clk 0:01:22]} 28. Rc8+ {[%clk 0:00:54]}  Kh7 {[%clk 0:01:21]} 29. Rc5 {[%clk 0:00:55]}  Qh2+ {[%clk 0:01:17]} 30. Kf1 {[%clk 0:00:55]}  f6 {[%clk 0:00:52]} 31. Rf5 {[%clk 0:00:40]}  Qh1+ {[%clk 0:00:47]} 32. Ke2 {[%clk 0:00:41]}  Qxg2 {[%clk 0:00:40]} 33. Nc6 {[%clk 0:00:32]}  Kg6 {[%clk 0:00:19]} 34. Rf4 {[%clk 0:00:28]}  Nh2 {[%clk 0:00:13]} 35. Ne5+ {[%clk 0:00:23]}  Kg5 {[%clk 0:00:12]} 36. Nf7+ {[%clk 0:00:19]}  Kg6 {[%clk 0:00:12]} 37. Ne5+ {[%clk 0:00:18]}  Kg5 {[%clk 0:00:12]} 38. Nf7+ {[%clk 0:00:13]}  Kh5 {[%clk 0:00:11]} 39. Nh8 {[%clk 0:00:14]}  Qf1+ {[%clk 0:00:10]} 40. Kd2 {[%clk 0:00:13]}  Nf3+ {[%clk 0:00:10]} 41. Kc3 {[%clk 0:00:10]}  Qc1+ {[%clk 0:00:10]} 42. Kb3 {[%clk 0:00:10]}  Qb1+ {[%clk 0:00:10]} 43. Kc3 {[%clk 0:00:09]}  Qc1+ {[%clk 0:00:11]} 44. Kb3 {[%clk 0:00:10]}  Nd2+ {[%clk 0:00:09]} 45. Rxd2 {[%clk 0:00:09]}  Qxd2 {[%clk 0:00:10]} 46. Rh4+ {[%clk 0:00:09]}  Kg5 {[%clk 0:00:10]} 47. Nf7+ {[%clk 0:00:09]}  Kg6 {[%clk 0:00:09]} 48. Nh8+ {[%clk 0:00:08]}  Kf5 {[%clk 0:00:09]} 49. Rf4+ {[%clk 0:00:09]}  Ke5 {[%clk 0:00:08]} 50. Ng6+ {[%clk 0:00:08]}  Kd6 {[%clk 0:00:06]} 51. Nh4 {[%clk 0:00:06]}  g5 {[%clk 0:00:04]} 52. Rxf6+ {[%clk 0:00:05]}  Ke7 {[%clk 0:00:04]} 53. Rf5 {[%clk 0:00:03]}  gxh4 {[%clk 0:00:04]} 0-1


[Site "https://www.chess.com"]

[Event "Titled Tuesday Blitz April 12 Late 2022"]
[White "Papasimakopoulos, Alexandros"]
[Black "Van Foreest, Jorden"]
[WhiteFideId "4244125"]
[BlackFideId "1039784"]
[WhiteElo "2340"]
[BlackElo "2609"]
[Result "0-1"]
[Round "03"]
[TimeControl "180+1"]
[Date "2022.04.12"]
[WhiteClock "0:00:20"]
[BlackClock "0:00:42"]

1. d4 {[%clk 0:03:00]}  Nc6 {[%clk 0:02:53]} 2. Nf3 {[%clk 0:02:59]}  d5 {[%clk 0:02:53]} 3. c4 {[%clk 0:02:59]}  e6 {[%clk 0:02:53]} 4. Nc3 {[%clk 0:02:58]}  Nf6 {[%clk 0:02:54]} 5. Bg5 {[%clk 0:02:58]}  Bb4 {[%clk 0:02:54]} 6. e3 {[%clk 0:02:57]}  h6 {[%clk 0:02:53]} 7. Bxf6 {[%clk 0:02:57]}  Qxf6 {[%clk 0:02:53]} 8. Qb3 {[%clk 0:02:53]}  Qd8 {[%clk 0:02:48]} 9. cxd5 {[%clk 0:02:45]}  Qxd5 {[%clk 0:02:45]} 10. Qxd5 {[%clk 0:02:44]}  exd5 {[%clk 0:02:44]} 11. Bb5 {[%clk 0:02:44]}  Bd7 {[%clk 0:02:45]} 12. a3 {[%clk 0:02:44]}  Bxc3+ {[%clk 0:02:44]} 13. bxc3 {[%clk 0:02:45]}  Na5 {[%clk 0:02:43]} 14. Bxd7+ {[%clk 0:02:43]}  Kxd7 {[%clk 0:02:43]} 15. Nd2 {[%clk 0:02:44]}  c5 {[%clk 0:02:42]} 16. Ke2 {[%clk 0:02:41]}  Rac8 {[%clk 0:02:42]} 17. Rhc1 {[%clk 0:02:39]}  Rc6 {[%clk 0:02:39]} 18. Rab1 {[%clk 0:02:38]}  Rhc8 {[%clk 0:02:39]} 19. Rb5 {[%clk 0:02:37]}  b6 {[%clk 0:02:38]} 20. a4 {[%clk 0:02:23]}  a6 {[%clk 0:02:38]} 21. Rb2 {[%clk 0:02:11]}  cxd4 {[%clk 0:02:29]} 22. exd4 {[%clk 0:02:11]}  Re8+ {[%clk 0:02:27]} 23. Kd3 {[%clk 0:02:09]}  Kc7 {[%clk 0:02:04]} 24. c4 {[%clk 0:02:03]}  dxc4+ {[%clk 0:02:03]} 25. Nxc4 {[%clk 0:02:04]}  Rd8 {[%clk 0:02:02]} 26. Rc3 {[%clk 0:01:55]}  Nxc4 {[%clk 0:01:43]} 27. Rxc4 {[%clk 0:01:56]}  Kb7 {[%clk 0:01:38]} 28. Rxc6 {[%clk 0:01:53]}  Kxc6 {[%clk 0:01:38]} 29. Rc2+ {[%clk 0:01:54]}  Kd6 {[%clk 0:01:39]} 30. Rb2 {[%clk 0:01:53]}  Rb8 {[%clk 0:01:39]} 31. Kc4 {[%clk 0:01:53]}  b5+ {[%clk 0:01:39]} 32. axb5 {[%clk 0:01:53]}  axb5+ {[%clk 0:01:40]} 33. Kb4 {[%clk 0:01:32]}  Kd5 {[%clk 0:01:40]} 34. Rd2 {[%clk 0:01:27]}  f5 {[%clk 0:01:39]} 35. h4 {[%clk 0:01:21]}  g5 {[%clk 0:01:37]} 36. hxg5 {[%clk 0:01:20]}  hxg5 {[%clk 0:01:38]} 37. f3 {[%clk 0:01:16]}  f4 {[%clk 0:01:37]} 38. Rd1 {[%clk 0:01:16]}  Rc8 {[%clk 0:01:36]} 39. Rd2 {[%clk 0:01:05]}  Rc4+ {[%clk 0:01:21]} 40. Kxb5 {[%clk 0:01:05]}  Rxd4 {[%clk 0:01:22]} 41. Ra2 {[%clk 0:00:52]}  Rd1 {[%clk 0:01:20]} 42. Kb6 {[%clk 0:00:43]}  Kd4 {[%clk 0:00:59]} 43. Re2 {[%clk 0:00:42]}  Rc1 {[%clk 0:00:47]} 44. Re4+ {[%clk 0:00:38]}  Kd5 {[%clk 0:00:45]} 45. Re2 {[%clk 0:00:39]}  Rc6+ {[%clk 0:00:44]} 46. Kb5 {[%clk 0:00:37]}  Rc1 {[%clk 0:00:42]} 47. Kb6 {[%clk 0:00:37]}  Rc3 {[%clk 0:00:41]} 48. Rd2+ {[%clk 0:00:33]}  Ke5 {[%clk 0:00:40]} 49. Re2+ {[%clk 0:00:32]}  Kf5 {[%clk 0:00:41]} 50. Ra2 {[%clk 0:00:25]}  Kg6 {[%clk 0:00:41]} 51. Kb5 {[%clk 0:00:22]}  Kh5 {[%clk 0:00:41]} 52. Kb4 {[%clk 0:00:23]}  Rc1 {[%clk 0:00:41]} 53. Kb3 {[%clk 0:00:20]}  Kh4 {[%clk 0:00:41]} 54. Ra5 {[%clk 0:00:21]}  Rg1 {[%clk 0:00:40]} 55. Ra2 {[%clk 0:00:20]}  Kg3 {[%clk 0:00:39]} 56. Ra5 {[%clk 0:00:21]}  Rxg2 {[%clk 0:00:40]} 57. Rxg5+ {[%clk 0:00:20]}  Kxf3 {[%clk 0:00:40]} 58. Rf5 {[%clk 0:00:20]}  Rd2 {[%clk 0:00:41]} 59. Kc3 {[%clk 0:00:20]}  Rd7 {[%clk 0:00:42]} 60. Rf7 {[%clk 0:00:20]} 0-1


[Site "https://www.chess.com"]

[Event "Titled Tuesday Blitz April 12 Late 2022"]
[White "Petrova, Irina"]
[Black "Garagulya, Konstantin"]
[WhiteFideId "14124122"]
[BlackFideId "4128931"]
[WhiteElo "1993"]
[BlackElo "2329"]
[Result "0-1"]
[Round "03"]
[TimeControl "180+1"]
[Date "2022.04.13"]
[WhiteClock "0:00:12"]
[BlackClock "0:00:17"]

1. e4 {[%clk 0:03:00]}  c5 {[%clk 0:02:55]} 2. Nf3 {[%clk 0:02:57]}  a6 {[%clk 0:02:53]} 3. g3 {[%clk 0:02:49]}  b5 {[%clk 0:02:52]} 4. Bg2 {[%clk 0:02:49]}  Bb7 {[%clk 0:02:53]} 5. d3 {[%clk 0:02:48]}  e6 {[%clk 0:02:54]} 6. O-O {[%clk 0:02:47]}  Ne7 {[%clk 0:02:54]} 7. a4 {[%clk 0:02:47]}  d5 {[%clk 0:02:53]} 8. e5 {[%clk 0:02:46]}  Nd7 {[%clk 0:02:47]} 9. axb5 {[%clk 0:02:42]}  axb5 {[%clk 0:02:48]} 10. Rxa8 {[%clk 0:02:42]}  Qxa8 {[%clk 0:02:48]} 11. c3 {[%clk 0:02:43]}  Ng6 {[%clk 0:02:47]} 12. Re1 {[%clk 0:02:42]}  Be7 {[%clk 0:02:43]} 13. h4 {[%clk 0:02:39]}  h6 {[%clk 0:02:42]} 14. h5 {[%clk 0:02:37]}  Ngf8 {[%clk 0:02:42]} 15. Bf4 {[%clk 0:02:37]}  Nh7 {[%clk 0:02:41]} 16. Nbd2 {[%clk 0:02:34]}  Ng5 {[%clk 0:02:42]} 17. d4 {[%clk 0:02:08]}  b4 {[%clk 0:01:56]} 18. cxb4 {[%clk 0:02:04]}  cxd4 {[%clk 0:01:51]} 19. Nxd4 {[%clk 0:02:05]}  O-O {[%clk 0:01:44]} 20. b5 {[%clk 0:01:58]}  Rc8 {[%clk 0:01:42]} 21. Qg4 {[%clk 0:01:51]}  Qa2 {[%clk 0:01:38]} 22. Bxg5 {[%clk 0:01:38]}  hxg5 {[%clk 0:01:30]} 23. f4 {[%clk 0:01:31]}  Qxb2 {[%clk 0:01:27]} 24. N2f3 {[%clk 0:01:29]}  gxf4 {[%clk 0:01:24]} 25. h6 {[%clk 0:01:29]}  g6 {[%clk 0:01:09]} 26. Nxe6 {[%clk 0:01:28]}  Rc1 {[%clk 0:00:49]} 27. h7+ {[%clk 0:01:14]}  Kh8 {[%clk 0:00:39]} 28. Neg5 {[%clk 0:01:11]}  Rxe1+ {[%clk 0:00:37]} 29. Nxe1 {[%clk 0:01:12]}  Bxg5 {[%clk 0:00:35]} 30. Qxg5 {[%clk 0:01:09]}  Qxe5 {[%clk 0:00:36]} 31. Qxe5+ {[%clk 0:01:04]}  Nxe5 {[%clk 0:00:36]} 32. gxf4 {[%clk 0:01:04]}  Nc4 {[%clk 0:00:35]} 33. Nd3 {[%clk 0:00:59]}  Nd6 {[%clk 0:00:35]} 34. b6 {[%clk 0:00:56]}  Kxh7 {[%clk 0:00:19]} 35. Nc5 {[%clk 0:00:56]}  Bc6 {[%clk 0:00:19]} 36. Kf2 {[%clk 0:00:50]}  Kg7 {[%clk 0:00:20]} 37. Ke3 {[%clk 0:00:47]}  Kf6 {[%clk 0:00:21]} 38. Bh3 {[%clk 0:00:41]}  Ke7 {[%clk 0:00:19]} 39. Kd4 {[%clk 0:00:40]}  Nb5+ {[%clk 0:00:18]} 40. Kd3 {[%clk 0:00:38]}  Kd6 {[%clk 0:00:18]} 41. b7 {[%clk 0:00:34]}  Kc7 {[%clk 0:00:17]} 42. Bg2 {[%clk 0:00:19]}  Nd6 {[%clk 0:00:17]} 43. Kd4 {[%clk 0:00:16]}  Nxb7 {[%clk 0:00:11]} 44. Nxb7 {[%clk 0:00:16]}  Bxb7 {[%clk 0:00:11]} 45. Bxd5 {[%clk 0:00:11]}  Bxd5 {[%clk 0:00:11]} 46. Kxd5 {[%clk 0:00:12]}  Kd7 {[%clk 0:00:12]} 47. Ke5 {[%clk 0:00:12]}  Ke7 {[%clk 0:00:12]} 48. f5 {[%clk 0:00:12]}  f6+ {[%clk 0:00:12]} 49. Ke4 {[%clk 0:00:11]}  g5 {[%clk 0:00:13]} 50. Kf3 {[%clk 0:00:11]}  Kd6 {[%clk 0:00:13]} 51. Ke4 {[%clk 0:00:12]}  Kc5 {[%clk 0:00:14]} 52. Ke3 {[%clk 0:00:11]}  Kd5 {[%clk 0:00:14]} 53. Kf3 {[%clk 0:00:11]}  Ke5 {[%clk 0:00:15]} 54. Kg4 {[%clk 0:00:12]}  Ke4 {[%clk 0:00:16]} 55. Kh5 {[%clk 0:00:12]}  Kxf5 {[%clk 0:00:17]} 0-1


[Site "https://www.chess.com"]